Workbook

Sheet Календарный график (2)
J2: Календарный график учебного процесса
B4: Курс | C4: Сентябрь | H4: Октябрь | L4: Ноябрь | P4: Декабрь | U4: Январь | Y4: Февраль | AC4: Март | AH4: Апрель | AL4: Май | AP4: Июнь | AU4: Июль | AY4: Август
C5: 2 | D5: 9 | E5: 16 | F5: 23 | G5: 30 | H5: 7 | I5: 14 | J5: 21 | K5: 28 | L5: 4 | M5: 11 | N5: 18 | O5: 25 | P5: 2 | Q5: 9 | R5: 16 | S5: 23 | T5: 30 | U5: 6 | V5: 13 | W5: 20 | X5: 27 | Y5: 3 | Z5: 10 | AA5: 17 | AB5: 24 | AC5: 10 | AD5: 17 | AE5: 24 | AF5: 23 | AG5: 31 | AH5: 7 | AI5: 14 | AJ5: 21 | AK5: 28 | AL5: 5 | AM5: 12 | AN5: 19 | AO5: 26 | AP5: 2 | AQ5: 9 | AR5: 16 | AS5: 23 | AT5: 30 | AU5: 7 | AV5: 14 | AW5: 21 | AX5: 28 | AY5: 4 | AZ5: 11 | BA5: 18 | BB5: 25
C6: 8 | D6: 15 | E6: 22 | F6: 29 | G6: 6 | H6: 13 | I6: 20 | J6: 27 | K6: 3 | L6: 10 | M6: 17 | N6: 24 | O6: 1 | P6: 8 | Q6: 15 | R6: 22 | S6: 29 | T6: 5 | U6: 12 | V6: 19 | W6: 26 | X6: 2 | Y6: 9 | Z6: 16 | AA6: 23 | AB6: 2 | AC6: 16 | AD6: 23 | AE6: 30 | AF6: 29 | AG6: 6 | AH6: 13 | AI6: 20 | AJ6: 27 | AK6: 4 | AL6: 11 | AM6: 18 | AN6: 25 | AO6: 1 | AP6: 8 | AQ6: 15 | AR6: 22 | AS6: 29 | AT6: 6 | AU6: 13 | AV6: 20 | AW6: 27 | AX6: 3 | AY6: 10 | AZ6: 17 | BA6: 24 | BB6: 31
B7: 1 | T7: - | U7: - | AR7: А | AS7: А | AT7: - | AU7: - | AV7: - | AW7: - | AX7: - | AY7: - | AZ7: - | BA7: - | BB7: -
B8: 2 | S8: ПП | T8: - | U8: - | AI8: ОУ | AJ8: ОУ | AK8: ОУ | AS8: А | AT8: - | AU8: - | AV8: - | AW8: - | AX8: - | AY8: - | AZ8: - | BA8: - | BB8: -
B9: 3 | G9: ОУ | H9: ОУ | I9: ПП/* | J9: ПП/* | L9: ПП/* | M9: ПП/* | N9: ПП/* | O9: ПП/* | P9: ОУ | Q9: ПП | R9: ПП | S9: А | T9: - | U9: - | X9: ПП/* | Y9: ПП/* | Z9: ПП/* | AA9: ПП/* | AB9: ПП/* | AC9: ПП/* | AD9: ПП/* | AF9: ПП/* | AG9: ПП/* | AH9: ПП/* | AQ9: А | AR9: ПП | AS9: ПП | AT9: ПП | AU9: - | AV9: - | AW9: - | AX9: - | AY9: - | AZ9: - | BA9: - | BB9: -
B10: 4 | C10: ПП | D10: ПП | E10: ПП/ | Q10: ОУ | R10: ОУ | S10: А | T10: - | U10: - | AB10: ПП | AC10: ПП | AD10: ПП | AE10: ПП | AI10: А | AJ10: ПД | AK10: ПД | AL10: ПД | AM10: ПД | AN10: ИА | AO10: ИА | AP10: ИА | AQ10: ИА | AR10: ИА | AS10: ИА
C11: 1 | D11: 2 | E11: 3 | F11: 4 | G11: 5 | H11: 6 | I11: 7 | J11: 8 | K11: 9 | L11: 10 | M11: 11 | N11: 12 | O11: 13 | P11: 14 | Q11: 15 | R11: 16 | S11: 17 | T11: 18 | U11: 19 | V11: 20 | W11: 21 | X11: 22 | Y11: 23 | Z11: 24 | AA11: 25 | AB11: 26 | AC11: 27 | AD11: 28 | AE11: 29 | AF11: 30 | AG11: 31 | AH11: 32 | AI11: 33 | AJ11: 34 | AK11: 35 | AL11: 36 | AM11: 37 | AN11: 38 | AO11: 39 | AP11: 40 | AQ11: 41 | AR11: 42 | AS11: 43 | AT11: 44 | AU11: 45 | AV11: 46 | AW11: 47 | AX11: 48 | AY11: 49 | AZ11: 50 | BA11: 51 | BB11: 52
C12: 1 | D12: 2 | E12: 3 | F12: 4 | G12: 5 | H12: 6 | I12: 7 | J12: 8 | K12: 9 | L12: 10 | M12: 11 | N12: 12 | O12: 13 | P12: 14 | Q12: 15 | R12: 16 | S12: 17 | V12: 1 | W12: 2 | X12: 3 | Y12: 4 | Z12: 5 | AA12: 6 | AB12: 7 | AC12: 8 | AD12: 9 | AE12: 10 | AF12: 11 | AG12: 12 | AH12: 13 | AI12: 14 | AJ12: 15 | AK12: 16 | AL12: 17 | AM12: 18 | AN12: 19 | AO12: 20 | AP12: 21 | AQ12: 22 | AR12: 23 | AS12: 24 | AT12: 25
D15: Условные обозначения
G17: - | H17: Теоретическое обучение | R17: ПП | T17: - | U17: Производственная практика | AD17: - | AF17: - | AG17: Каникулы | AN17: ПД | AP17: - | AQ17: Преддипломная практика
E19: ОУ | G19: - | H19: Учебная практика | R19: А | T19: - | U19: Промежуточная атестация | AD19: ИА | AF19: - | AG19: Итоговая аттестация
E21: ПП/* | G21: - | H21: Один день недели практика пробных уроков. 5 дней недели теоретическое обучение
AK25: ,
AK39: ,

Sheet Титул
AK2: Утверждаю:
AK3: Директор ______________
AK4: ГБОУ СПО "МППК"
AK5: М.Н. Верхотурцев
AK6: « | AL6: 7 | AN6: » | AO6: июня | AR6: 201 | AT6: 3 | AU6: г
O8: УЧЕБНЫЙ ПЛАН
B9: Государственного образовательного учреждения среднего профессионального образования
C10: «Мишкинский профессионально-педагогический колледж»
J11: по специальности среднего профессионального образования
F16: "050146 | L16: Преподавание в начальных классах
J19: по программе углубленной подготовки
AA24: Квалификация: | AI24: Учитель начальных классов
AA27: Форма обучения- | AJ27: очная
AA28: Нормативный срок обучения- | AN28: 3 | AP28: г | AQ28: 10 | AS28: мес
AA29: На базе | AE29: основного общего образования
AA30: Профиль | AE30: естественно - научный

Sheet Сводные
A1: Сводные данные по бюджету времени (в неделях)
A3: Курсы | B3: Обучение по дисциплинам и междисциплинарным курсам | C3: Учебная практика | D3: Производственная практика | F3: Промежуточная аттестация | G3: Государственная итоговая аттестация | H3: Каникулы | I3: Всего
D4: по профилю специальности | E4: преддипломная
E5: (для СПО)
A6: 1 | B6: 2 | C6: 3 | D6: 4 | E6: 5 | F6: 6 | G6: 7 | H6: 8 | I6: 9
A7: I курс | B7: =I7-H7-G7-F7-E7-D7-C7 -> 39 | F7: 2 | H7: 11 | I7: 52
A8: II курс | B8: =I8-H8-G8-F8-E8-D8-C8 -> 36 | C8: 3 | D8: 1 | F8: 1 | H8: 11 | I8: 52
A9: III курс | B9: 29.5 | C9: 3 | D9: 7.5 | F9: 2 | H9: 10 | I9: 52
A10: VI курс | B10: 20.5 | C10: 2 | D10: 6.5 | E10: 4 | F10: 2 | G10: 6 | H10: 2 | I10: 43
A11: Всего | B11: =SUM(B7:B10) -> 125 | C11: 8 | D11: 15 | E11: 4 | F11: 7 | G11: 6 | H11: 34 | I11: 199

Sheet План уч проц
T2: Технич
B3: Индекс | C3: Наименование циклов, дисциплин, профессиональных модулей, МДК, практик | D3: Форма промежуточной аттестации | G3: Учебная нагрузка обучающихся (час.) | M3: Учебная и производственная практика | N3: Распределение обязательной нагрузки по курсам и семестрам[2] (час. в семестр)
G7: максимальная | H7: самостоятельная работа | I7: Обязательная аудиторная | N7: I курс | P7: II курс | R7: III курс | T7: IV курс
D8: З | E8: ДЗ | F8: Э | I8: всего занятий | J8: в т. ч. | N8: 1 семестр | O8: 2 семестр | P8: 3 семестр | Q8: 4 семестр | R8: 5 семестр | S8: 6 семестр | T8: 7 семестр | U8: 8 семестр
J9: лекций, уроков, семинаров | K9: лаб. и практ. занятий | L9: Курсовая | N9: сем. | O9: сем. | P9: сем. | Q9: сем. | R9: сем. | S9: сем. | T9: сем. | U9: сем.
P10: 17 | Q10: 23 | R10: 16 | S10: 24 | T10: 16 | U10: 17
N11: 17 | O11: 22 | P11: 16 | Q11: 20 | R11: 10 | S11: 19 | T11: 11 | U11: 10
N12: нед | O12: нед | P12: нед | Q12: нед | R12: нед | S12: нед | T12: нед | U12: нед
B13: 1 | C13: 2 | D13: 3 | E13: 4 | F13: 5 | G13: 6 | H13: 7 | I13: 8 | J13: 9 | K13: 10 | L13: 11 | M13: 12 | N13: 13 | O13: 14 | P13: 15 | Q13: 16 | R13: 17 | S13: 18 | T13: 19 | U13: 20
B14: О.00 | C14: Общеобразовательный цикл | I14: =SUM(I15:I26) -> 1404 | N14: =SUM(N15:N26) -> 612 | O14: =SUM(O15:O26) -> 792
B15: ОДБ.01 | C15: Русский язык | F15: 2 | I15: =SUM(N15:S15) -> 78 | N15: 34 | O15: 44
B16: ОДБ.02 | C16: Литература | E16: 2 | I16: =SUM(N16:S16) -> 117 | N16: 51 | O16: 66
B17: ОДБ.03 | C17: Иностранный язык | E17: 2 | I17: 117 | N17: 51 | O17: 66
B18: ОДБ.04 | C18: Математика | F18: 2 | I18: 234 | N18: 102 | O18: 132
B19: ОДБ.05 | C19: История | E19: 2 | I19: 78 | N19: 34 | O19: 44
B20: ОДБ.06 | C20: Обществознание (включая экономику и право) | E20: 2 | I20: 78 | N20: 34 | O20: 44
B21: ОДБ.07 | C21: Информатика | E21: 2 | I21: 78 | N21: 34 | O21: 44
B22: ОДБ.08 | C22: Основы безопасности жизнедеятельности | E22: 2 | I22: 78 | N22: 34 | O22: 44
B23: ОДБ.09 | C23: Физическая культура | D23: 1 | E23: 2 | I23: 117 | N23: 51 | O23: 66
B24: ОДП.01 | C24: Биология | E24: 2 | I24: 117 | N24: 51 | O24: 66
B25: ОДП.02 | C25: Физика | F25: 2 | I25: 195 | N25: 85 | O25: 110
B26: ОДП.03 | C26: Химия | E26: 2 | I26: 117 | N26: 51 | O26: 66
C27: Всего по циклам ОПОП | G27: =G28+G36+G41 -> 4644 | H27: =G27-I27 -> 1548 | I27: =I28+I36+I41 -> 3096 | J27: =J28+J36+J41 -> 1494 | K27: 1602 | P27: =P28+P36+P41 -> 576 | Q27: =Q28+Q36+Q41 -> 720 | R27: 360 | S27: 702 | T27: 414 | U27: 324
B28: ОГСЭ.00 | C28: Общий гуманитарный и социально-экономический цикл | G28: =SUM(G29:G35) -> 935 | H28: =SUM(H29:H35) -> 327 | I28: =SUM(I29:I35) -> 608 | J28: =SUM(J29:J35) -> 212 | K28: 396 | P28: =SUM(P29:P35) -> 176 | Q28: =SUM(Q29:Q35) -> 136 | R28: 40 | S28: 172 | T28: 44 | U28: 40
B29: ОГСЭ.01 | C29: Основы философии | E29: 6 | G29: 54 | H29: =G29-I29 -> 6 | I29: =SUM(P29:U29) -> 48 | J29: 48 | S29: 48
B30: ОГСЭ.02 | C30: История | E30: 3 | G30: 54 | H30: 6 | I30: =SUM(P30:U30) -> 48 | J30: 48 | P30: 48
B31: ОГСЭ.03 | C31: Психология общения | E31: 6 | G31: 54 | H31: 6 | I31: =SUM(P31:U31) -> 48 | J31: 6 | K31: 42 | S31: 48
B32: ОГСЭ.04 | C32: Иностранный язык | E32: 8 | G32: 250 | H32: =G32-I32 -> 78 | I32: =SUM(P32:U32) -> 172 | J32: 6 | K32: 166 | P32: 32 | Q32: 40 | R32: 20 | S32: 38 | T32: 22 | U32: 20
B33: ОГСЭ.05 | C33: Физическая культура | D33: 3,4,5,6,7 | E33: 8 | G33: 344 | H33: =G33-I33 -> 172 | I33: =SUM(P33:U33) -> 172 | J33: 6 | K33: 166 | P33: 32 | Q33: 40 | R33: 20 | S33: 38 | T33: 22 | U33: 20
B34: ОГСЭ.06 | C34: Русский язык и культура речи | E34: 4 | G34: 84 | H34: 28 | I34: 56 | J34: 46 | K34: 10 | P34: 16 | Q34: 40
B35: ОГСЭ.07 | C35: МХК | E35: 4 | G35: 95 | H35: 31 | I35: 64 | J35: 52 | K35: 12 | P35: 48 | Q35: 16
B36: ЕН.00 | C36: Математический и общий естественнонаучный цикл | G36: =SUM(G37:G40) -> 282 | H36: =SUM(H37:H40) -> 94 | I36: =SUM(I37:I40) -> 188 | J36: =SUM(J37:J40) -> 61 | K36: =SUM(K37:K40) -> 127 | P36: =P37+P38+P39+P40 -> 112 | Q36: =Q37+Q38+Q39+Q40 -> 44 | R36: 32 | S36: 0 | T36: 0 | U36: 0
B37: ЕН.01 | C37: Математика | F37: 4 | G37: 72 | H37: =G37-I37 -> 25 | I37: =SUM(P37:U37) -> 47 | J37: 20 | K37: 27 | P37: 32 | Q37: 15
B38: ЕН.02 | C38: Информатика и информационно-коммуникационные технологии (ИКТ) в профессиональной деятельности | E38: 4 | G38: 114 | H38: =G38-I38 -> 37 | I38: =SUM(P38:U38) -> 77 | J38: 9 | K38: 68 | P38: 48 | Q38: 29
B39: ЕН.03 | C39: Экологические основы природопользования | E39: 3 | G39: 48 | H39: =G39-I39 -> 16 | I39: =SUM(P39:U39) -> 32 | J39: 20 | K39: 12 | P39: 32
B40: ЕН.04 | C40: Логика | E40: 4 | G40: =ROUNDDOWN(I40*1.5,0) -> 48 | H40: =G40-I40 -> 16 | I40: =SUM(P40:U40) -> 32 | J40: 12 | K40: 20 | R40: 32
B41: П.00 | C41: Профессиональный цикл | G41: =G42+G50 -> 3427 | H41: =H42+H50 -> 1127 | I41: =I42+I50 -> 2300 | J41: =J42+J50 -> 1221 | K41: =K42+K50 -> 1079 | P41: =P42+P50 -> 288 | Q41: =Q42+Q50 -> 540 | R41: 288 | S41: 530 | T41: 370 | U41: 284
B42: ОП.00 | C42: Общепрофессиональные дисциплины | G42: =SUM(G43:G49) -> 624 | H42: =SUM(H43:H49) -> 208 | I42: =SUM(I43:I49) -> 416 | J42: =SUM(J43:J49) -> 266 | K42: =SUM(K43:K49) -> 150 | P42: =SUM(P43:P49) -> 176 | Q42: =SUM(Q43:Q49) -> 192 | R42: 48 | S42: 0 | T42: 0 | U42: 0
B43: ОП.01 | C43: Педагогика | F43: 4 | G43: 120 | H43: 41 | I43: =SUM(P43:U43) -> 79 | J43: 59 | K43: 20 | P43: 48 | Q43: 31
B44: ОП.02 | C44: Психология | F44: 4 | G44: 114 | H44: 38 | I44: 76 | J44: 60 | K44: 16 | P44: 48 | Q44: 28
B45: ОП.03 | C45: Возрастная антомия, физиология и гигиена | E45: 4 | G45: 114 | H45: 37 | I45: 77 | J45: 45 | K45: 32 | P45: 48 | Q45: 29
B46: ОП.04 | C46: Правовое обеспечение профессиональной деятельности | E46: 4 | G46: 54 | H46: 18 | I46: 36 | J46: 30 | K46: 6 | Q46: 36
B47: ОП.05 | C47: Безопасность жизнедеятельности | E47: 6 | G47: 102 | H47: 34 | I47: 68 | J47: 20 | K47: 48 | Q47: 68
B48: ОП.06 | C48: Основы экономики и предпринимательской деятельности в сфере образования | F48: 5 | G48: 72 | H48: 24 | I48: 48 | J48: 32 | K48: 16 | R48: 48
B49: ОП.07 | C49: Менеджмент | E49: 3 | G49: 48 | H49: 16 | I49: 32 | J49: 20 | K49: 12 | P49: 32
B50: ПМ.00 | C50: Профессиональные модули | G50: =G51+G69+G73+G79+G83 -> 2803 | H50: =H51+H69+H73+H79+H83 -> 919 | I50: =I51+I69+I73+I79+I83 -> 1884 | J50: =J51+J69+J73+J79+J83 -> 955 | K50: 929 | L50: 60 | M50: 828 | P50: =P51+P69+P73+P79+P83 -> 112 | Q50: =Q51+Q69+Q73+Q79+Q83 -> 348 | R50: 240 | S50: 530 | T50: 370 | U50: 284
B51: ПМ.01 | C51: Преподавание по программам начального общего образования | F51: 7(к) | G51: =SUM(G52:G63) -> 1684 | H51: 566 | I51: =SUM(I52:I63) -> 1118 | J51: =SUM(J52:J63) -> 692 | K51: =SUM(K52:K63) -> 426 | L51: 30 | M51: =SUM(M64:M68) -> 360 | P51: =SUM(P52:P63) -> 112 | Q51: =SUM(Q52:Q63) -> 288 | R51: 166 | S51: 366 | T51: 186 | U51: 0
B52: МДК.01.01 | C52: Теоретические основы организации обучения в начальных классах | E52: 4 | G52: 218 | H52: 72 | I52: =SUM(P52:U52) -> 146 | J52: 126 | K52: 20 | P52: 80 | Q52: 66
B53: МДК.01.02 | C53: Русский язык с методикой преподавания | F53: 7 | G53: 336 | H53: 96 | I53: =SUM(P53:U53) -> 240 | J53: 164 | K53: 76 | Q53: 80 | R53: 34 | S53: 82 | T53: 44
B54: МДК.01.03 | C54: Детская литература с практикумом по выразительному чтению | F54: 7 | G54: 150 | H54: 70 | I54: 80 | J54: 30 | K54: 50 | R54: 20 | S54: 38 | T54: 22
B55: МДК.01.04 | C55: Теоретические основы начального курса математики с методикой преподавания | F55: 6 | G55: 280 | H55: 94 | I55: 186 | J55: 116 | K55: 70 | Q55: 26 | R55: 33 | S55: 127
B56: МДК.01.05 | C56: Естествознание с методикой преподавания | F56: 6 | G56: 150 | H56: 50 | I56: 100 | J56: 70 | K56: 30 | Q56: 40 | R56: 20 | S56: 40
B57: МДК.01.06 | C57: Методика обучения продуктивным видам деятельности с практикумом | F57: 6 | G57: 184 | H57: 62 | I57: 122 | J57: 42 | K57: 80 | P57: 32 | Q57: 40 | R57: 30 | S57: 20
B58: МДК.01.07 | C58: Теория и методика физического воспитания с практикумом | E58: 4 | G58: 54 | H58: 18 | I58: 36 | J58: 16 | K58: 20 | Q58: 36
B59: МДК.01.08 | C59: Теория и методика музыкального воспитания с практикумом | E59: 6 | G59: 84 | H59: 28 | I59: 56 | J59: 36 | K59: 20 | R59: 29 | S59: 27
B60: МДК.01.09 | C60: Каллиграфия | E60: 6 | G60: 48 | H60: 16 | I60: 32 | J60: 12 | K60: 20 | S60: 32
B61: МДК.01.10 | C61: Основы мировых религий с методикой преподавания курсов духовно-нравственной направленности | D61: 7 | G61: 84 | H61: 28 | I61: 56 | J61: 40 | K61: 16 | T61: 56
B62: МДК.01.11 | C62: Методика преподавания обществознания | D62: 7 | G62: 48 | H62: 16 | I62: 32 | J62: 20 | K62: 12 | T62: 32
B63: МДК.01.12 | C63: Методика преподавания ОБЖ и профилактики ПАВ в начальной школе | D63: 7 | G63: 48 | H63: 16 | I63: 32 | J63: 20 | K63: 12 | T63: 32
B64: УП.01.01 | C64: Учебная практика (полевая) | M64: =SUM(N64:U64) -> 72 | Q64: 72
B65: УП.01.02 | C65: Учебная практика (практика показательных уроков) | E65: 5 | M65: =SUM(N65:U65) -> 72 | R65: 72
B66: ПП.01.01 | C66: Производственная практика (психолого-педагогическая) | M66: 36 | P66: 36
B67: ПП.01.02 | C67: Производственная практика (первые дни ребенка в школе) | M67: 36 | T67: 36
B68: ПП.01.03 | C68: Практика пробных уроков | E68: 7 | M68: 144 | R68: 36 | S68: 54 | T68: 54
B69: ПМ.02 | C69: Организация внеурочной деятельности и общения младших школьников | F69: 5(к) | G69: =G70 -> 144 | H69: =H70 -> 48 | I69: 96 | J69: =J70 -> 46 | K69: =K70 -> 50 | M69: =SUM(M71:M72) -> 108 | P69: =P70 -> 0 | Q69: =Q70 -> 60 | R69: 36 | S69: 0 | T69: 0 | U69: 0
B70: МДК.02.01 | C70: Основы организации внеурочной работы | E70: 5 | G70: 144 | H70: 48 | I70: =SUM(P70:U70) -> 96 | J70: 46 | K70: 50 | Q70: 60 | R70: 36
B71: УП.02.01 | C71: Учебная практика (практика по внеурочной деятельности) | M71: 36 | Q71: 36
B72: ПП 02.01 | C72: Производственная практика (практика по внеурочной деятельности) | M72: =SUM(N72:U72) -> 72 | R72: 72
B73: ПМ.03 | C73: Классное руководство | F73: 8(к) | G73: =G74 -> 144 | H73: =H74 -> 48 | I73: 96 | J73: 52 | K73: 44 | M73: =SUM(M75:M78) -> 252 | P73: =P74 -> 0 | Q73: =Q74 -> 0 | R73: 38 | S73: 58 | T73: 0 | U73: 0
B74: МДК.03.01 | C74: Теоретические и методические основы деятельности классного руководителя | E74: 6 | G74: 144 | H74: 48 | I74: =SUM(P74:U74) -> 96 | J74: 52 | K74: 44 | R74: 38 | S74: 58
B75: УП.03.01 | C75: Учебная практика (подготовка к летней практике) | M75: =SUM(N75:U75) -> 36 | R75: 36
B76: УП.03.02 | C76: Учебная практика (практика классного руководителя) | E76: 6 | M76: =SUM(N76:U76) -> 36 | T76: 36
B77: ПП.03.01 | C77: Производственная практика (летняя практика) | M77: =SUM(N77:U77) -> 108 | S77: 108
B78: ПП.03.02 | C78: Производственная практика (практика классного руководителя) | M78: 72 | U78: 72
B79: ПМ.04 | C79: Методическое обеспечение образовательного процесса | F79: 8(к) | G79: =SUM(G80:G80) -> 105 | H79: =SUM(H80:H80) -> 35 | I79: =SUM(I80:I80) -> 70 | J79: =SUM(J80:J80) -> 34 | K79: =SUM(K80:K80) -> 36 | L79: 30 | M79: =SUM(M81:M82) -> 72 | P79: =P80 -> 0 | Q79: =Q80 -> 0 | R79: 0 | S79: 0 | T79: 70 | U79: 0
B80: МДК.04.01 | C80: Теоретические и прикладные аспекты методической работы учителя начальных классов | E80: 7 | G80: =ROUNDDOWN(I80*1.5,0) -> 105 | H80: 35 | I80: =SUM(P80:U80) -> 70 | J80: 34 | K80: 36 | T80: 70
B81: УП.04.01 | C81: Учебная практика (Практика методической работы учителя) | H81: 0 | M81: =SUM(N81:U81) -> 36 | T81: 36
B82: ПП 04.01 | C82: Производственная практика (Практика методической работы учителя) | H82: 0 | M82: =SUM(N82:U82) -> 36 | U82: 36
B83: ПМ.05 | C83: Иностранный язык в начальной школе | F83: 8(к) | G83: =SUM(G84:G86) -> 726 | H83: 222 | I83: =SUM(I84:I86) -> 504 | J83: =SUM(J84:J86) -> 131 | K83: 373 | M83: =M87 -> 36 | P83: =P84+P85+P86 -> 0 | Q83: =Q84+Q85+Q86 -> 0 | R83: 0 | S83: 106 | T83: 114 | U83: 284
B84: МДК.05.01 | C84: Иностранный язык и страноведение | E84: 8 | G84: 452 | H84: 131 | I84: =SUM(N84:U84) -> 321 | J84: 25 | K84: 296 | S84: 106 | T84: 114 | U84: 101
B85: МДК.05.02 | C85: Детская литература стран изучаемого языка | E85: 8 | G85: 100 | H85: 33 | I85: =SUM(N85:U85) -> 67 | J85: 40 | K85: 27 | U85: 67
B86: МДК.05.03 | C86: Методика обучения иностранному языку в начальных классах | E86: 8 | G86: 174 | H86: 58 | I86: 116 | J86: 66 | K86: 50 | U86: 116
B87: ПП.05.01 | C87: Производственная практика (Практика пробных уроков) | M87: =SUM(N87:U87) -> 36 | U87: 36
B88: Всего | G88: =I88+H88 -> 6048 | H88: =SUM(H41+H36+H28+H14) -> 1548 | I88: =SUM(I41+I36+I28+I14) -> 4500 | J88: =SUM(J41+J36+J28+J14) -> 1494 | K88: =SUM(K41+K36+K28+K14) -> 1602 | L88: =SUM(L14:L87) -> 120 | M88: =SUM(M83+M79+M73+M69+M51) -> 828 | N88: =SUM(N15:N87) -> 612 | O88: 792 | P88: =P92+P94+P95 -> 612 | Q88: =Q92+Q94+Q95 -> 828 | R88: 576 | S88: 864 | T88: 576 | U88: 612
B89: Кол-во часов в неделю | N89: 36 | O89: 36 | P89: =P88/P10 -> 36 | Q89: =Q88/Q10 -> 36 | R89: 36 | S89: 36 | T89: 36 | U89: 36
B90: ПДП | C90: Преддипломная практика | U90: 144
B91: ГИА | C91: Государственная итоговая аттестация
B92: Консультации на учебную группу по 100 часов в год (всего 400 час.) | I92: Всего | J92: дисциплин и МДК | N92: =SUM(N15:N26) -> 612 | O92: =SUM(O15:O26) -> 792 | P92: =P27 -> 576 | Q92: =Q27 -> 720 | R92: 360 | S92: 702 | T92: 414 | U92: 324
B94: Государственная (итоговая) аттестация 216 часов | J94: учебной практики | N94: =SUM(N64:N65,N71,N75:N76,N81) -> 0 | O94: 0 | P94: 0 | Q94: 108 | R94: =SUM(R64:R65,R71,R75:R76,R81) -> 108 | S94: =SUM(S64:S65,S71,S75:S76,S81) -> 0 | T94: 72 | U94: 0
B95: 1. Программа базовой подготовки | J95: производст. практика/преддипломная практика | N95: =SUM(N66:N68,N72,N77:N78,N82,N87) -> 0 | O95: =SUM(O66:O68,O72,O77:O78,O82,O87) -> 0 | P95: 36 | Q95: 0 | R95: 108 | S95: 162 | T95: =SUM(T66:T68,T72,T77:T78,T82,T87) -> 90 | U95: =SUM(U66:U68,U72,U77:U78,U82,U87,U90) -> 288
B96: 1.1 Промежуточная аттестация (7 недель) 252
B97: 1.2. Дипломный проект (работа) | J97: экзаменов | N97: - | O97: 3 | P97: - | Q97: 3 | R97: 2 | S97: 3 | T97: 3 | U97: 3
B98: Выполнение дипломного проекта (работы) с 24.05 по 14.06 (всего 4 нед.) | J98: диф.зачетов | N98: - | O98: 8 | P98: 2 | Q98: 7 | R98: 2 | S98: 7 | T98: 4 | U98: 4
B99: Защита дипломного проекта (работы) с 15.06 по 28. 06 (всего 2) | J99: зачетов | N99: - | O99: - | P99: - | Q99: - | R99: - | S99: - | T99: 1 | U99: -

Sheet Лист3 (hidden)
C1: 1 | D1: 5
A2: очная | C2: 2 | D2: 10 | E2: основного общего образования
A3: заочная | C3: 3 | E3: начального профессионального образования | J3: по программе базовой подготовки
A4: очно-заочная | C4: 4 | E4: среднего (полного) общего образования | J4: по программе углубленной подготовки
C5: 5
C6: 6
C7: 0 | J7: по специальности среднего профессионального образования
J8: по профессии начального профессионального образования

Sheet Перечень кабинетов
B1: Перечень кабинетов, лабораторий, мастерских и др. для подготовки
B2: по специальности СПО
A3: № | B3: Наименование
B4: Кабинеты:
A5: 1 | B5: гуманитарных и социально-экономических дисциплин;
A6: 2 | B6: педагогики и психологии;
A7: 3 | B7: физиологии, анатомии и гигиены;
A8: 4 | B8: иностранного языка;
A9: 5 | B9: русского языка с методикой преподавания;
A10: 6 | B10: математики с методикой преподавания;
A11: 7 | B11: естествознания с методикой преподавания;
A12: 8 | B12: музыки и методики музыкального воспитания;
A13: 9 | B13: методики обучения продуктивным видам деятельности;
A14: 10 | B14: детской литературы;
A15: 11 | B15: теории и методики физического воспитания;
A16: 12 | B16: безопасности жизнедеятельности.
B17: Лаборатории:
A18: 1 | B18: информатики и информационно-коммуникационных технологий.
B19: Спортивный комплекс:
A20: 1 | B20: спортивный зал;
A21: 2 | B21: спортивная площадка;
A22: 3 | B22: стрелковый тир (в любой модификации, включая электронный) или место для стрельбы
B23: Залы:
A24: 1 | B24: библиотека, читальный зал с выходом в сеть Интернет;
A25: 2 | B25: актовый зал.

Sheet Лист1 (hidden)
